[Event "Reykjavik Open 2022"]
[Site "Reykjavik"]
[Date "2022.04.07"]
[Round "2.28"]
[White "Foerster-Yialamas, Lucas"]
[Black "Grieve, Harry"]
[Result "0-1"]
[ECO "B12"]
[WhiteElo "2048"]
[BlackElo "2384"]
[Annotator "ChessBase"]
[PlyCount "120"]
[EventDate "2022.04.06"]
[EventCountry "ISL"]
[SourceTitle "playchess.com"]
[Source "ChessBase"]
[SourceQuality "1"]
[TimeControl "40/5400+30:1800+30"]

1. e4 {[%emt 0:00:03]} c6 {[%emt 0:00:07]} 2. d4 {[%emt 0:00:05]} d5 {[%emt 0:00:05]} 3. e5 {[%emt 0:00:04]} Bf5 {[%emt 0:00:06]} 4. h4 {[%emt 0:00:07]} h5 {[%emt 0:00:07]} 5. Bd3 {[%emt 0:00:07]} Bxd3 {[%emt 0:00:06]} 6. Qxd3 {[%emt 0:00:08]} Qa5+ {[%emt 0:00:05]} 7. Nd2 {[%emt 0:00:45]} e6 {[%emt 0:00:09]} 8. Ngf3 {[%emt 0:01:05]} Nh6 {[%emt 0:00:08]} 9. O-O {[%emt 0:05:56]} Nf5 {[%emt 0:00:05]} 10. c4 {[%emt 0:02:17]} Be7 {[%emt 0:00:07]} 11. g3 {[%emt 0:02:17]} O-O {[%emt 0:00:07]} 12. Rd1 {[%emt 0:04:58]} Qa6 {[%emt 0:00:07]} 13. b3 {[%emt 0:00:43]} c5 {[%emt 0:01:52]} 14. Bb2 {[%emt 0:10:20]} Nc6 {[%emt 0:00:43]} 15. dxc5 {[%emt 0:02:57]} Bxc5 {[%emt 0:06:46]} 16. Kg2 {[%emt 0:01:22]} Rfd8 {[%emt 0:05:42]} 17. Qf1 {[%emt 0:05:25]} Nb4 {[%emt 0:07:57]} 18. cxd5 {[%emt 0:04:38]} Qxf1+ {[%emt 0:05:33]} 19. Nxf1 {[%emt 0:00:56]} Nxd5 {[%emt 0:00:41]} 20. Rac1 {[%emt 0:01:25]} Rac8 {[%emt 0:02:53]} 21. a3 {[%emt 0:02:06]} a5 {[%emt 0:03:54]} 22. Rd2 {[%emt 0:02:36]} Ba7 {[%emt 0:08:23]} 23. Rc4 {[%emt 0:10:27]} b5 {[%emt 0:01:45]} 24. Re4 {[%emt 0:03:01]} Rd7 {[%emt 0:06:18]} 25. Ne1 {[%emt 0:06:01]} Rdc7 {[%emt 0:05:29]} 26. g4 {[%emt 0:04:46]} hxg4 {[%emt 0:06:13]} 27. Rxg4 {[%emt 0:00:12]} a4 {[%emt 0:07:42]} 28. Ng3 {[%emt 0:11:12]} Nh6 {[%emt 0:06:30]} 29. Rg5 {[%emt 0:01:24]} Nf4+ {[%emt 0:01:48]} 30. Kf3 {[%emt 0:02:42]} Nh3 {[%emt 0:02:22]} 31. bxa4 {[%emt 0:01:05]} bxa4 {[%emt 0:01:22]} 32. Rh5 {[%emt 0:01:47]} Rc4 {[%emt 0:02:44]} 33. Ne4 {[%emt 0:06:04]} Rb8 {[%emt 0:04:39]} 34. Nd3 {[%emt 0:03:37]} Rb3 {[%emt 0:04:03]} 35. Nd6 {[%emt 0:02:36]} Rf4+ {[%emt 0:01:30]} 36. Kg2 {[%emt 0:01:54]} Rxf2+ {[%emt 0:02:23]} 37. Nxf2 {[%emt 0:00:20]} Nf4+ {[%emt 0:00:02]} 38. Kf1 {[%emt 0:01:15]} Nxh5 {[%emt 0:00:02]} 39. Nfe4 {[%emt 0:00:35]} Ng4 {[%emt 0:01:06]} 40. Ng5 {[%emt 0:00:00]} Be3 {[%emt 0:00:00]} 41. Rg2 {[%emt 0:05:54]} Nf4 {[%emt 0:04:11]} 42. Rc2 {[%emt 0:01:30]} Rb8 {[%emt 0:02:27]} 43. Ndxf7 {[%emt 0:02:25]} Bd4 {[%emt 0:02:39]} 44. Bc1 {[%emt 0:01:25]} Ne3+ {[%emt 0:00:58]} 45. Bxe3 {[%emt 0:00:58]} Bxe3 {[%emt 0:00:02]} 46. Re2 {[%emt 0:01:56]} Nxe2 {[%emt 0:00:13]} 47. Kxe2 {[%emt 0:00:05]} Rb3 {[%emt 0:01:07]} 48. Nd6 {[%emt 0:01:08]} Bxg5 {[%emt 0:00:14]} 49. hxg5 {[%emt 0:00:04]} Rxa3 {[%emt 0:00:08]} 50. Ne4 {[%emt 0:00:20]} Rh3 {[%emt 0:00:25]} 51. Kd2 {[%emt 0:00:13]} a3 {[%emt 0:00:11]} 52. Kc2 {[%emt 0:00:45]} Re3 {[%emt 0:00:16]} 53. Nd6 {[%emt 0:01:07]} Rxe5 {[%emt 0:00:12]} 54. g6 {[%emt 0:00:19]} Rd5 {[%emt 0:00:17]} 55. Ne4 {[%emt 0:00:19]} Rb5 {[%emt 0:00:11]} 56. Nc3 {[%emt 0:00:17]} Rc5 {[%emt 0:00:14]} 57. Kb3 {[%emt 0:00:04]} Rxc3+ {[%emt 0:00:05]} 58. Kxc3 {[%emt 0:00:03]} Kf8 {[%emt 0:00:06]} 59. Kb3 {[%emt 0:00:02]} Ke7 {[%emt 0:00:05]} 60. Kxa3 {[%emt 0:00:05]} Kf6 {[%emt 0:00:03]} 0-1

[Event "Reykjavik Open 2022"]
[Site "Reykjavik"]
[Date "2022.04.07"]
[Round "2.29"]
[White "Bosboom, Ardin"]
[Black "Vardaan Nagpal"]
[Result "1-0"]
[ECO "D31"]
[WhiteElo "2090"]
[BlackElo "2378"]
[Annotator "ChessBase"]
[PlyCount "105"]
[EventDate "2022.04.06"]
[EventCountry "ISL"]
[SourceTitle "playchess.com"]
[Source "ChessBase"]
[SourceQuality "1"]
[TimeControl "40/5400+30:1800+30"]

1. d4 {[%emt 0:00:02]} d5 {[%emt 0:00:09]} 2. c4 {[%emt 0:00:10]} e6 {[%emt 0:00:03]} 3. Nc3 {[%emt 0:00:15]} c6 {[%emt 0:00:03]} 4. e4 {[%emt 0:00:24]} dxe4 {[%emt 0:00:30]} 5. Nxe4 {[%emt 0:00:04]} Bb4+ {[%emt 0:00:05]} 6. Bd2 {[%emt 0:00:05]} Qxd4 {[%emt 0:00:06]} 7. Bxb4 {[%emt 0:00:12]} Qxe4+ {[%emt 0:00:08]} 8. Ne2 {[%emt 0:00:20]} Na6 {[%emt 0:03:50]} 9. Bf8 {[%emt 0:03:05]} Qe5 {[%emt 0:11:27]} 10. Qd2 {[%emt 0:07:05]} Bd7 {[%emt 0:00:55]} 11. Bd6 {[%emt 0:07:08]} Qe4 {[%emt 0:20:11]} 12. O-O-O {[%emt 0:05:16]} Nf6 {[%emt 0:16:12]} 13. Ng3 {[%emt 0:11:45]} Qh4 {[%emt 0:02:45]} 14. Qe3 {[%emt 0:04:57]} Ng4 {[%emt 0:00:31]} 15. Qd4 {[%emt 0:02:07]} e5 {[%emt 0:11:11]} 16. Bxe5 {[%emt 0:09:21]} O-O-O {[%emt 0:00:15]} 17. h3 {[%emt 0:06:10]} c5 {[%emt 0:14:42]} 18. hxg4 {[%emt 0:12:14]} Qxh1 {[%emt 0:01:53]} 19. Qxd7+ {[%emt 0:00:06]} Rxd7 {[%emt 0:00:09]} 20. Nxh1 {[%emt 0:00:04]} Rxd1+ {[%emt 0:04:25]} 21. Kxd1 {[%emt 0:00:12]} Rd8+ {[%emt 0:00:14]} 22. Kc1 {[%emt 0:01:07]} f6 {[%emt 0:00:17]} 23. Bc3 {[%emt 0:00:33]} Nc7 {[%emt 0:00:26]} 24. Ng3 {[%emt 0:01:46]} Ne6 {[%emt 0:00:09]} 25. Kc2 {[%emt 0:02:43]} Kd7 {[%emt 0:07:08]} 26. Bd3 {[%emt 0:02:56]} h6 {[%emt 0:00:02]} 27. Nh5 {[%emt 0:01:48]} Ke7 {[%emt 0:00:08]} 28. g3 {[%emt 0:02:32]} Kf7 {[%emt 0:01:47]} 29. Be4 {[%emt 0:01:35]} Rd7 {[%emt 0:00:10]} 30. Bd5 {[%emt 0:01:34]} Ke7 {[%emt 0:00:09]} 31. b4 {[%emt 0:05:52]} Kd6 {[%emt 0:01:23]} 32. Bxe6 {[%emt 0:04:14]} Kxe6 {[%emt 0:00:03]} 33. bxc5 {[%emt 0:00:05]} Kf7 {[%emt 0:02:00]} 34. Nf4 {[%emt 0:00:26]} Rc7 {[%emt 0:02:30]} 35. Bd4 {[%emt 0:00:37]} Re7 {[%emt 0:00:12]} 36. Kd2 {[%emt 0:01:42]} Re4 {[%emt 0:00:23]} 37. Kc3 {[%emt 0:02:17]} Re1 {[%emt 0:00:11]} 38. c6 {[%emt 0:01:40]} bxc6 {[%emt 0:00:06]} 39. Bxa7 {[%emt 0:00:05]} Re5 {[%emt 0:01:22]} 40. Kb4 {[%emt 0:00:00]} g5 {[%emt 0:00:00]} 41. Nd3 {[%emt 0:02:44]} Re7 {[%emt 0:01:23]} 42. Bb6 {[%emt 0:00:52]} Rd7 {[%emt 0:00:06]} 43. a4 {[%emt 0:02:46]} Rxd3 {[%emt 0:00:27]} 44. a5 {[%emt 0:00:04]} c5+ {[%emt 0:05:27]} 45. Kxc5 {[%emt 0:01:02]} Ke6 {[%emt 0:00:33]} 46. Kc6 {[%emt 0:00:52]} Rd6+ {[%emt 0:01:34]} 47. Kb7 {[%emt 0:01:44]} Rd7+ {[%emt 0:00:20]} 48. Bc7 {[%emt 0:00:19]} Rd4 {[%emt 0:00:46]} 49. c5 {[%emt 0:01:51]} Kd5 {[%emt 0:00:39]} 50. a6 {[%emt 0:00:26]} Rxg4 {[%emt 0:00:21]} 51. a7 {[%emt 0:01:08]} Ra4 {[%emt 0:00:12]} 52. Bb6 {[%emt 0:00:23]} h5 {[%emt 0:01:11]} 53. c6 {[%emt 0:00:22]} 1-0

[Event "Reykjavik Open 2022"]
[Site "Reykjavik"]
[Date "2022.04.07"]
[Round "2.30"]
[White "Hedman, Erik"]
[Black "Ruiz Buendia, Miguel"]
[Result "1/2-1/2"]
[ECO "A34"]
[WhiteElo "2368"]
[BlackElo "2074"]
[Annotator "RC"]
[PlyCount "21"]
[EventDate "2022.04.06"]
[EventCountry "ISL"]
[SourceTitle "playchess.com"]
[Source "ChessBase"]
[SourceQuality "1"]
[TimeControl "40/5400+30:1800+30"]

1. Nf3 {[%emt 0:00:04]} c5 {[%emt 0:00:59]} 2. c4 {[%emt 0:00:07]} Nf6 {[%emt 0:00:10]} 3. Nc3 {[%emt 0:00:22]} d5 {[%emt 0:00:11]} 4. cxd5 {[%emt 0:02:18]} Nxd5 {[%emt 0:00:06]} 5. e4 {[%emt 0:06:36]} Nb4 {[%emt 0:00:18]} 6. Bc4 {[%emt 0:00:07]} Nd3+ {[%emt 0:00:11]} 7. Ke2 {[%emt 0:00:08]} Nf4+ {[%emt 0:00:34]} 8. Kf1 {[%emt 0:00:09]} Nd3 {[%emt 0:00:08]} 9. Ke2 {[%emt 0:34:02]} Nf4+ {[%emt 0:00:24]} 10. Kf1 {[%emt 0:00:02]} Nd3 {[%emt 0:00:09]} 11. Ke2 {[%emt 0:01:52]} 1/2-1/2

[Event "Reykjavik Open 2022"]
[Site "Reykjavik"]
[Date "2022.04.07"]
[Round "2.31"]
[White "Dishman, Stephen"]
[Black "Barthel, Ansgar"]
[Result "1-0"]
[ECO "D34"]
[WhiteElo "2332"]
[BlackElo "2053"]
[Annotator "ChessBase"]
[PlyCount "65"]
[EventDate "2022.04.06"]
[EventCountry "ISL"]
[SourceTitle "playchess.com"]
[Source "ChessBase"]
[SourceQuality "1"]
[TimeControl "40/5400+30:1800+30"]

1. Nf3 {[%emt 0:00:03]} d5 {[%emt 0:00:15]} 2. c4 {[%emt 0:00:10]} e6 {[%emt 0:00:05]} 3. d4 {[%emt 0:00:13]} c5 {[%emt 0:00:06]} 4. cxd5 {[%emt 0:00:11]} exd5 {[%emt 0:00:06]} 5. g3 {[%emt 0:00:10]} Nc6 {[%emt 0:00:06]} 6. Bg2 {[%emt 0:00:08]} Nf6 {[%emt 0:00:05]} 7. O-O {[%emt 0:00:18]} Be7 {[%emt 0:00:08]} 8. Nc3 {[%emt 0:00:08]} O-O {[%emt 0:00:05]} 9. Bg5 {[%emt 0:00:17]} cxd4 {[%emt 0:00:11]} 10. Nxd4 {[%emt 0:00:07]} h6 {[%emt 0:00:08]} 11. Be3 {[%emt 0:00:20]} Bg4 {[%emt 0:00:13]} 12. Qa4 {[%emt 0:00:18]} Ne5 {[%emt 0:01:39]} 13. Rad1 {[%emt 0:00:37]} Nc4 {[%emt 0:00:15]} 14. Qb3 {[%emt 0:00:20]} Nxe3 {[%emt 0:27:34]} 15. fxe3 {[%emt 0:00:05]} Qb6 {[%emt 0:01:15]} 16. Qxb6 {[%emt 0:06:54]} axb6 {[%emt 0:00:05]} 17. Nxd5 {[%emt 0:01:16]} Nxd5 {[%emt 0:00:18]} 18. Bxd5 {[%emt 0:00:10]} Bf6 {[%emt 0:14:46]} 19. Rd3 {[%emt 0:19:29]} Rfe8 {[%emt 0:08:23]} 20. e4 {[%emt 0:10:54]} Be6 {[%emt 0:17:12]} 21. Bxe6 {[%emt 0:16:55]} fxe6 {[%emt 0:01:52]} 22. a3 {[%emt 0:00:25]} Ra4 {[%emt 0:05:10]} 23. Rfd1 {[%emt 0:02:03]} e5 {[%emt 0:05:09]} 24. Nb5 {[%emt 0:04:46]} Be7 {[%emt 0:08:11]} 25. b4 {[%emt 0:02:13]} Bf8 {[%emt 0:07:50]} 26. Rd7 {[%emt 0:00:33]} Re7 {[%emt 0:00:44]} 27. Rd8 {[%emt 0:06:34]} Rf7 {[%emt 0:00:59]} 28. Rb8 {[%emt 0:05:16]} Kh7 {[%emt 0:00:42]} 29. Rf1 {[%emt 0:01:07]} Rxf1+ {[%emt 0:00:28]} 30. Kxf1 {[%emt 0:00:04]} Be7 {[%emt 0:00:16]} 31. Rxb7 {[%emt 0:00:41]} Bg5 {[%emt 0:00:07]} 32. Ra7 {[%emt 0:02:26]} Rxa7 {[%emt 0:00:10]} 33. Nxa7 {[%emt 0:00:05]} 1-0

[Event "Reykjavik Open 2022"]
[Site "Reykjavik"]
[Date "2022.04.07"]
[Round "2.32"]
[White "Cummings, David H."]
[Black "Marzik, Hans"]
[Result "1-0"]
[ECO "E71"]
[WhiteElo "2327"]
[BlackElo "2050"]
[Annotator "ChessBase"]
[PlyCount "81"]
[EventDate "2022.04.06"]
[EventCountry "ISL"]
[SourceTitle "playchess.com"]
[Source "ChessBase"]
[SourceQuality "1"]
[TimeControl "40/5400+30:1800+30"]

1. c4 {[%emt 0:00:12]} Nf6 {[%emt 0:00:27]} 2. Nc3 {[%emt 0:00:09]} g6 {[%emt 0:00:05]} 3. e4 {[%emt 0:00:17]} d6 {[%emt 0:00:03]} 4. d4 {[%emt 0:00:07]} Bg7 {[%emt 0:00:08]} 5. h3 {[%emt 0:00:31]} O-O {[%emt 0:00:22]} 6. Be3 {[%emt 0:00:25]} e5 {[%emt 0:03:32]} 7. d5 {[%emt 0:00:16]} a5 {[%emt 0:04:04]} 8. g4 {[%emt 0:01:05]} c6 {[%emt 0:07:58]} 9. Qd2 {[%emt 0:02:04]} b5 {[%emt 0:04:38]} 10. cxb5 {[%emt 0:05:13]} cxd5 {[%emt 0:00:04]} 11. exd5 {[%emt 0:01:54]} a4 {[%emt 0:03:24]} 12. Nge2 {[%emt 0:04:24]} Nbd7 {[%emt 0:00:41]} 13. Ng3 {[%emt 0:03:20]} Nb6 {[%emt 0:00:17]} 14. g5 {[%emt 0:08:13]} Ne8 {[%emt 0:00:44]} 15. Nge4 {[%emt 0:01:35]} Bb7 {[%emt 0:05:43]} 16. O-O-O {[%emt 0:07:44]} f5 {[%emt 0:21:12]} 17. gxf6 {[%emt 0:00:15]} Nxf6 {[%emt 0:00:36]} 18. Nxf6+ {[%emt 0:06:25]} Bxf6 {[%emt 0:00:17]} 19. Kb1 {[%emt 0:03:11]} Bh4 {[%emt 0:06:47]} 20. Rg1 {[%emt 0:02:09]} a3 {[%emt 0:20:13]} 21. Bd3 {[%emt 0:13:37]} Rf7 {[%emt 0:09:31]} 22. b3 {[%emt 0:03:52]} Nd7 {[%emt 0:01:15]} 23. Rg4 {[%emt 0:12:03]} Nf8 {[%emt 0:00:38]} 24. Rc4 {[%emt 0:02:13]} Rc8 {[%emt 0:04:31]} 25. Rg1 {[%emt 0:02:52]} Rxc4 {[%emt 0:00:41]} 26. bxc4 {[%emt 0:00:55]} Bc8 {[%emt 0:00:11]} 27. Ne4 {[%emt 0:02:51]} Bf5 {[%emt 0:00:37]} 28. f3 {[%emt 0:04:59]} Bd7 {[%emt 0:02:15]} 29. Be2 {[%emt 0:03:14]} Bf5 {[%emt 0:00:23]} 30. Rc1 {[%emt 0:01:38]} Bxe4+ {[%emt 0:00:19]} 31. fxe4 {[%emt 0:00:07]} Bf2 {[%emt 0:00:02]} 32. Bg4 {[%emt 0:01:20]} Bxe3 {[%emt 0:00:18]} 33. Qxe3 {[%emt 0:00:04]} Kg7 {[%emt 0:00:13]} 34. Qxa3 {[%emt 0:00:27]} Qh4 {[%emt 0:00:14]} 35. Qe3 {[%emt 0:01:17]} h5 {[%emt 0:00:16]} 36. Be6 {[%emt 0:01:42]} Rf4 {[%emt 0:00:10]} 37. Re1 {[%emt 0:00:23]} Nh7 {[%emt 0:01:21]} 38. b6 {[%emt 0:00:42]} Nf6 {[%emt 0:00:38]} 39. b7 {[%emt 0:01:25]} Rxe4 {[%emt 0:00:42]} 40. b8=Q {[%emt 0:00:00]} Rxe3 {[%emt 0:00:00]} 41. Qa7+ {[%emt 0:01:04]} 1-0

[Event "Reykjavik Open 2022"]
[Site "Reykjavik"]
[Date "2022.04.07"]
[Round "2.33"]
[White "Lim, Zhuo Ren"]
[Black "Kartsev, Nikolay"]
[Result "1/2-1/2"]
[ECO "E11"]
[WhiteElo "2317"]
[BlackElo "2036"]
[Annotator "ChessBase"]
[PlyCount "64"]
[EventDate "2022.04.06"]
[EventCountry "ISL"]
[SourceTitle "playchess.com"]
[Source "ChessBase"]
[SourceQuality "1"]
[TimeControl "40/5400+30:1800+30"]

1. d4 {[%emt 0:00:02]} Nf6 {[%emt 0:03:30]} 2. c4 {[%emt 0:00:18]} e6 {[%emt 0:00:11]} 3. Nf3 {[%emt 0:00:14]} d5 {[%emt 0:00:04]} 4. g3 {[%emt 0:00:17]} Bb4+ {[%emt 0:00:11]} 5. Bd2 {[%emt 0:00:53]} Be7 {[%emt 0:00:05]} 6. Bg2 {[%emt 0:00:28]} O-O {[%emt 0:00:32]} 7. Qc2 {[%emt 0:00:23]} Nbd7 {[%emt 0:00:44]} 8. O-O {[%emt 0:05:05]} c6 {[%emt 0:01:54]} 9. Rd1 {[%emt 0:01:34]} b6 {[%emt 0:01:28]} 10. Nc3 {[%emt 0:04:38]} dxc4 {[%emt 0:02:19]} 11. Ne5 {[%emt 0:01:48]} Nxe5 {[%emt 0:00:29]} 12. dxe5 {[%emt 0:00:06]} Nd5 {[%emt 0:00:23]} 13. Qe4 {[%emt 0:27:21]} b5 {[%emt 0:05:44]} 14. Qg4 {[%emt 0:05:11]} Qc7 {[%emt 0:08:16]} 15. Bf4 {[%emt 0:03:00]} Nxc3 {[%emt 0:11:53]} 16. bxc3 {[%emt 0:02:02]} Kh8 {[%emt 0:12:03]} 17. Bg5 {[%emt 0:07:16]} f6 {[%emt 0:08:45]} 18. exf6 {[%emt 0:00:36]} Bxf6 {[%emt 0:21:32]} 19. Bxf6 {[%emt 0:01:54]} Rxf6 {[%emt 0:01:06]} 20. Bxc6 {[%emt 0:11:36]} e5 {[%emt 0:09:55]} 21. Qh4 {[%emt 0:05:06]} Bb7 {[%emt 0:03:11]} 22. Be4 {[%emt 0:03:29]} Bxe4 {[%emt 0:01:09]} 23. Qxe4 {[%emt 0:00:02]} Raf8 {[%emt 0:00:16]} 24. f3 {[%emt 0:00:39]} Rd6 {[%emt 0:01:56]} 25. Rd5 {[%emt 0:09:55]} Qb6+ {[%emt 0:02:35]} 26. Kf1 {[%emt 0:00:04]} Rxd5 {[%emt 0:00:28]} 27. Qxd5 {[%emt 0:00:03]} Qe3 {[%emt 0:00:24]} 28. Qd6 {[%emt 0:00:49]} Kg8 {[%emt 0:00:47]} 29. Qe6+ {[%emt 0:01:28]} Kh8 {[%emt 0:00:02]} 30. Qe7 {[%emt 0:00:33]} Kg8 {[%emt 0:00:07]} 31. Qe6+ {[%emt 0:02:29]} Kh8 {[%emt 0:00:06]} 32. Qe7 {[%emt 0:00:02]} Kg8 {[%emt 0:00:40]} 1/2-1/2

[Event "Reykjavik Open 2022"]
[Site "Reykjavik"]
[Date "2022.04.07"]
[Round "2.34"]
[White "Held, Thomas"]
[Black "Valkama, Eero"]
[Result "0-1"]
[ECO "C90"]
[WhiteElo "2045"]
[BlackElo "2244"]
[Annotator "ChessBase"]
[PlyCount "64"]
[EventDate "2022.04.06"]
[EventCountry "ISL"]
[SourceTitle "playchess.com"]
[Source "ChessBase"]
[SourceQuality "1"]
[TimeControl "40/5400+30:1800+30"]

1. e4 {[%emt 0:05:52]} e5 {[%emt 0:00:06]} 2. Nf3 {[%emt 0:00:34]} Nc6 {[%emt 0:00:05]} 3. Bb5 {[%emt 0:00:18]} a6 {[%emt 0:00:06]} 4. Ba4 {[%emt 0:00:05]} Nf6 {[%emt 0:00:06]} 5. O-O {[%emt 0:00:21]} Be7 {[%emt 0:00:09]} 6. Re1 {[%emt 0:00:38]} b5 {[%emt 0:00:10]} 7. Bb3 {[%emt 0:00:08]} d6 {[%emt 0:00:07]} 8. a4 {[%emt 0:02:39]} Bd7 {[%emt 0:01:05]} 9. a5 {[%emt 0:04:52]} Nb8 {[%emt 0:20:37]} 10. c3 {[%emt 0:12:53]} c5 {[%emt 0:00:38]} 11. d4 {[%emt 0:00:12]} Nc6 {[%emt 0:08:08]} 12. dxc5 {[%emt 0:06:34]} dxc5 {[%emt 0:00:08]} 13. Bd5 {[%emt 0:00:07]} O-O {[%emt 0:02:58]} 14. Nbd2 {[%emt 0:30:11]} Qc7 {[%emt 0:09:17]} 15. Nf1 {[%emt 0:06:11]} Rad8 {[%emt 0:18:53]} 16. Bxc6 {[%emt 0:01:11]} Bxc6 {[%emt 0:00:09]} 17. Qc2 {[%emt 0:00:08]} c4 {[%emt 0:11:56]} 18. Ng3 {[%emt 0:10:27]} Nd7 {[%emt 0:04:40]} 19. Be3 {[%emt 0:05:55]} Bc5 {[%emt 0:02:59]} 20. Bg5 {[%emt 0:00:07]} f6 {[%emt 0:00:53]} 21. Bc1 {[%emt 0:00:20]} Ba7 {[%emt 0:00:48]} 22. b4 {[%emt 0:00:15]} cxb3 {[%emt 0:00:32]} 23. Qxb3+ {[%emt 0:00:07]} Kh8 {[%emt 0:00:22]} 24. Qe6 {[%emt 0:02:49]} Nc5 {[%emt 0:00:32]} 25. Qh3 {[%emt 0:01:57]} Nd3 {[%emt 0:01:45]} 26. Re3 {[%emt 0:02:13]} Nxc1 {[%emt 0:05:43]} 27. Rxc1 {[%emt 0:00:07]} Bxe3 {[%emt 0:00:03]} 28. fxe3 {[%emt 0:00:07]} Bd7 {[%emt 0:00:43]} 29. Qh5 {[%emt 0:01:44]} Qxa5 {[%emt 0:00:12]} 30. Nh4 {[%emt 0:00:05]} Kg8 {[%emt 0:02:51]} 31. Ngf5 {[%emt 0:01:21]} Bxf5 {[%emt 0:00:25]} 32. Nxf5 {[%emt 0:00:09]} Qc7 {[%emt 0:01:26]} 0-1

[Event "Reykjavik Open 2022"]
[Site "Reykjavik"]
[Date "2022.04.07"]
[Round "2.35"]
[White "Lohia, Sohum"]
[Black "Ritzka, Simon"]
[Result "1/2-1/2"]
[ECO "C12"]
[WhiteElo "2251"]
[BlackElo "2038"]
[Annotator "ChessBase"]
[PlyCount "68"]
[EventDate "2022.04.06"]
[EventCountry "ISL"]
[SourceTitle "playchess.com"]
[Source "ChessBase"]
[SourceQuality "1"]
[TimeControl "40/5400+30:1800+30"]

1. e4 {[%emt 0:00:04]} e6 {[%emt 0:00:04]} 2. d4 {[%emt 0:00:08]} d5 {[%emt 0:00:03]} 3. Nc3 {[%emt 0:00:11]} Nf6 {[%emt 0:00:05]} 4. Bg5 {[%emt 0:00:08]} Bb4 {[%emt 0:00:09]} 5. e5 {[%emt 0:00:09]} h6 {[%emt 0:00:04]} 6. Bd2 {[%emt 0:00:13]} Bxc3 {[%emt 0:00:05]} 7. Bxc3 {[%emt 0:00:07]} Ne4 {[%emt 0:00:04]} 8. Bb4 {[%emt 0:00:09]} c5 {[%emt 0:07:25]} 9. Bxc5 {[%emt 0:00:09]} Nxc5 {[%emt 0:06:51]} 10. dxc5 {[%emt 0:00:07]} Qc7 {[%emt 0:00:07]} 11. Nf3 {[%emt 0:00:36]} Qxc5 {[%emt 0:00:33]} 12. c3 {[%emt 0:01:10]} Bd7 {[%emt 0:00:15]} 13. Bd3 {[%emt 0:01:52]} Bb5 {[%emt 0:01:12]} 14. O-O {[%emt 0:00:48]} Nc6 {[%emt 0:06:02]} 15. a4 {[%emt 0:08:33]} Bxd3 {[%emt 0:15:45]} 16. Qxd3 {[%emt 0:00:17]} O-O {[%emt 0:01:04]} 17. Qb5 {[%emt 0:15:26]} Qe7 {[%emt 0:08:34]} 18. Rfe1 {[%emt 0:16:19]} Qc7 {[%emt 0:09:31]} 19. Rad1 {[%emt 0:04:14]} Rac8 {[%emt 0:18:13]} 20. h4 {[%emt 0:22:44]} a6 {[%emt 0:05:22]} 21. Qd3 {[%emt 0:02:51]} b5 {[%emt 0:03:55]} 22. axb5 {[%emt 0:02:34]} axb5 {[%emt 0:00:05]} 23. Qxb5 {[%emt 0:03:17]} Rb8 {[%emt 0:00:50]} 24. Qe2 {[%emt 0:00:19]} Rb3 {[%emt 0:01:05]} 25. c4 {[%emt 0:07:00]} dxc4 {[%emt 0:04:15]} 26. Qxc4 {[%emt 0:00:27]} Qb6 {[%emt 0:00:08]} 27. Re2 {[%emt 0:01:25]} Rb8 {[%emt 0:02:23]} 28. Rc1 {[%emt 0:04:22]} Ne7 {[%emt 0:03:40]} 29. Rcc2 {[%emt 0:03:44]} Nf5 {[%emt 0:00:25]} 30. h5 {[%emt 0:01:13]} Rxf3 {[%emt 0:02:06]} 31. gxf3 {[%emt 0:00:26]} Nd4 {[%emt 0:00:03]} 32. Re3 {[%emt 0:02:14]} Nxc2 33. Qxc2 Qd8 34. f4 {[%emt 0:00:02]} Qb6 {[%emt 0:00:07]} 1/2-1/2